bitfinex-derivatives/quotes_BTCF0:USTF0_20250207
["timestamp","ask_amount","ask_price","bid_price","bid_amount"]
[1738953251934,0.0399,98225.0,98215.0,0.2035637]
[1738953252130,0.2035566,98219.0,98215.0,0.5643637]
[1738953252436,0.0399,98225.0,98215.0,0.9251637]
[1738953252437,0.2035499,98222.0,98215.0,0.9251637]
[1738953252635,0.203554,98220.0,98215.0,0.9251637]
[1738953252825,0.20509018,98216.0,98215.0,0.9251637]
[1738953253132,0.00152858,98216.0,98215.0,0.9251637]
[1738953254222,0.081,98244.0,98215.0,0.7226]
[1738953254421,0.081,98244.0,98243.0,0.3608]
[1738953255927,0.081,98244.0,98243.0,0.3618]
[1738953256337,0.18100757,98247.0,98243.0,0.3618]
[1738953256547,0.18100757,98247.0,98246.0,0.2034994]
[1738953257737,0.18100757,98247.0,98246.0,0.2044994]
[1738953258031,0.27395345,98272.0,98246.0,0.3748]
[1738953258232,0.1825968,98265.0,98258.0,0.3608]
[1738953258538,0.1825968,98265.0,98264.0,0.2034622]
[1738953258733,0.2034429,98274.0,98268.0,0.2034531]
[1738953258927,0.0411,98278.0,98273.0,0.3608]
[1738953259240,0.18165604,98291.0,98273.0,0.7216]
[1738953259535,0.18165604,98291.0,98290.0,0.7216]
[1738953260136,0.16365604,98291.0,98290.0,0.7216]
[1738953261036,0.16365604,98291.0,98290.0,0.3608]
[1738953261037,0.36706234,98291.0,98290.0,0.3608]
[1738953261237,0.16365604,98291.0,98290.0,0.3608]
[1738953261534,0.16365604,98291.0,98290.0,0.2034083]
[1738953261725,0.16365604,98291.0,98290.0,0.3608]
[1738953262127,0.16365604,98291.0,98282.0,0.3608]
[1738953262439,0.2034228,98283.0,98282.0,0.3608]
[1738953263028,0.326209,98290.0,98282.0,0.37109993]
[1738953263237,0.2034135,98288.0,98284.0,0.2034196]
[1738953263540,0.2034187,98285.0,98282.0,0.37109993]
[1738953263930,0.2034219,98284.0,98282.0,0.37109993]
[1738953264235,0.2034219,98284.0,98282.0,0.01029993]
[1738953264437,0.2034219,98284.0,98280.0,0.2034285]
[1738953264641,0.2033907,98299.0,98297.0,0.2033936]
[1738953264944,0.2033897,98299.0,98298.0,0.3608]
[1738953265238,0.2034117,98289.0,98285.0,0.2034182]
[1738953265436,0.2034135,98288.0,98285.0,0.2034182]
[1738953265845,0.3608,98294.0,98277.0,0.3608]
[1738953266141,0.2034329,98279.0,98277.0,0.3608]
[1738953266441,0.2034329,98279.0,98277.0,0.37094964]
[1738953266442,0.0419,98278.0,98277.0,0.37094964]
[1738953266645,0.0419,98278.0,98277.0,0.3608]
[1738953266830,0.0419,98278.0,98263.0,0.74643635]
[1738953266831,0.0419,98278.0,98263.0,0.54297245]
[1738953267135,0.3608,98272.0,98263.0,0.18217245]
[1738953267345,0.2034994,98246.0,98245.0,0.3608]
[1738953267639,0.2034899,98251.0,98249.0,0.2034927]
[1738953267941,0.2034982,98247.0,98245.0,0.37170953]
[1738953268135,0.2034982,98247.0,98245.0,0.37078953]
[1738953268341,0.07372,98259.0,98245.0,0.37078953]
[1738953268540,0.2034875,98252.0,98250.0,0.2034903]
[1738953268835,0.07372,98259.0,98249.0,0.001]
[1738953269038,0.2034911,98250.0,98249.0,0.001]
[1738953269434,0.2034994,98246.0,98245.0,0.37170953]
[1738953269630,0.07372,98259.0,98245.0,0.37078953]
[1738953269837,0.2034787,98256.0,98255.0,0.3608]
[1738953270445,0.2034987,98247.0,98246.0,0.2034991]
[1738953270640,0.2034987,98247.0,98245.0,0.37174953]
[1738953270844,0.0432,98246.0,98245.0,0.00998953]
[1738953271036,0.0432,98246.0,98242.0,0.17889344]
[1738953271240,0.2035057,98243.0,98242.0,0.17889344]
[1738953271435,0.2035057,98243.0,98242.0,0.18900331]
[1738953271847,0.2035057,98243.0,98242.0,0.01010987]
[1738953272042,0.0432,98246.0,98240.0,0.20366413]
[1738953272237,0.2035098,98241.0,98240.0,0.20366413]
[1738953272543,0.2035098,98241.0,98240.0,0.21367712]
[1738953272741,0.2467,98246.0,98245.0,0.2035015]
[1738953273145,0.2035057,98243.0,98242.0,0.3668]
[1738953273344,0.3608,98256.0,98242.0,0.3668]
[1738953273548,0.2034914,98250.0,98247.0,0.2034956]
[1738953273750,0.2034914,98250.0,98248.0,0.2034952]
[1738953273939,0.2034889,98252.0,98243.0,0.2035049]
[1738953274139,0.40156001,98256.0,98242.0,0.3668]
[1738953274342,0.2034859,98253.0,98252.0,0.203487]
[1738953274545,0.40152001,98256.0,98242.0,0.3608]
[1738953274751,0.401,98256.0,98242.0,0.3608]
[1738953274951,0.401,98256.0,98253.0,0.2034845]
[1738953274952,0.2034812,98255.0,98253.0,0.2034845]
[1738953275445,0.0402,98256.0,98255.0,0.2034808]
[1738953276049,0.2436787,98256.0,98255.0,0.2034808]
[1738953277151,0.2034838,98254.0,98252.0,0.37202998]
[1738953277347,0.2034838,98254.0,98252.0,0.37110998]
[1738953278552,0.2034838,98254.0,98252.0,0.01030998]
[1738953278743,0.2035057,98243.0,98242.0,0.3608]
[1738953278942,0.2035057,98243.0,98242.0,0.37080211]
[1738953279145,0.2035098,98241.0,98240.0,0.00015263]
[1738953281257,0.2034929,98250.0,98245.0,0.2035015]
[1738953281450,0.2034876,98252.0,98250.0,0.2034902]
[1738953281649,0.0402,98256.0,98251.0,0.3608]
[1738953281849,0.2436804,98256.0,98252.0,0.2034863]
[1738953282357,0.2436804,98256.0,98248.0,0.3608]
[1738953282358,0.203487,98252.0,98248.0,0.3608]
[1738953282550,0.0402,98256.0,98250.0,0.001]
[1738953282742,0.2034891,98251.0,98250.0,0.001]
[1738953282948,0.2035098,98241.0,98240.0,0.00015263]
[1738953283859,0.2035017,98245.0,98241.0,0.2035097]
[1738953284156,0.2035017,98245.0,98240.0,0.00015263]
[1738953284361,0.2035017,98245.0,98243.0,0.2035053]
[1738953284551,0.07372,98249.0,98240.0,0.00015263]
[1738953284552,0.2035036,98244.0,98240.0,0.00015263]
[1738953284746,0.07372,98249.0,98240.0,0.00015263]
[1738953284747,0.2035098,98241.0,98240.0,0.00015263]
[1738953286163,0.2035098,98241.0,98240.0,0.00515263]
[1738953288454,0.07372,98249.0,98240.0,0.00515263]
[1738953288455,0.2034994,98247.0,98240.0,0.00515263]
[1738953288766,0.203493,98250.0,98247.0,0.203496]
[1738953289062,0.0001521,98260.0,98247.0,0.564296]
[1738953289261,0.0001521,98260.0,98247.0,0.3608]
[1738953289462,0.0001521,98260.0,98255.0,0.5642808]
[1738953289659,0.07372,98259.0,98255.0,0.5642808]
[1738953289862,0.07372,98259.0,98257.0,0.2034767]
[1738953291867,0.2435746,98258.0,98255.0,0.3608]
[1738953292452,0.0401,98258.0,98255.0,0.3608]
[1738953292661,0.0001521,98260.0,98259.0,0.2034725]
[1738953295258,0.0001521,98260.0,98259.0,0.2044725]
[1738953296265,0.0001521,98260.0,98259.0,0.5652725]
[1738953296455,0.0001521,98260.0,98259.0,0.5642725]
[1738953296656,0.0001521,98260.0,98259.0,0.5672725]
[1738953297569,0.27901708,98300.0,98259.0,0.5672725]
[1738953297570,0.2034064,98291.0,98284.0,0.2034208]
[1738953297771,0.04,98290.0,98284.0,0.2034208]
[1738953299063,0.0055269,98285.0,98284.0,0.2034208]
[1738953301368,0.2034261,98282.0,98280.0,0.3608]
[1738953301667,0.0055269,98285.0,98275.0,0.00015263]
[1738953301668,0.2034321,98279.0,98275.0,0.00015263]
[1738953301870,0.2089465,98285.0,98275.0,0.00015263]
[1738953302069,0.32478395,98332.0,98284.0,0.3608]
[1738953302070,0.1,98300.0,98284.0,0.3608]
[1738953302265,0.2033927,98298.0,98296.0,0.3608]
[1738953302657,0.1,98300.0,98296.0,0.3608]
[1738953302863,0.1,98300.0,98299.0,0.2033897]
[1738953304872,0.1,98300.0,98296.0,0.3618]
[1738953304873,0.2033924,98298.0,98296.0,0.3618]
[1738953305168,0.2033924,98298.0,98296.0,0.3608]
[1738953305669,0.101,98300.0,98299.0,0.2033897]
[1738953306269,0.1,98300.0,98299.0,0.2033897]
[1738953306963,0.1,98300.0,98299.0,0.2043897]
[1738953310178,0.1,98300.0,98299.0,0.001]
[1738953310368,0.1,98300.0,98299.0,0.5651897]
[1738953310569,0.0403,98323.0,98299.0,0.3618]
[1738953310768,0.0403,98323.0,98321.0,0.2033429]
[1738953310967,0.0403,98323.0,98314.0,0.3608]
[1738953310968,0.3608,98356.0,98322.0,0.3608]
[1738953311174,0.2201,98386.0,98310.0,0.23835674]
[1738953311175,0.0403,98344.0,98339.0,0.3608]
[1738953311475,0.18182094,98352.0,98351.0,0.2032822]
[1738953311680,0.18182094,98352.0,98351.0,0.3608]
[1738953312266,0.2032957,98345.0,98343.0,0.5640985]
[1738953312471,0.2032957,98345.0,98343.0,0.3608]
[1738953313366,0.2033153,98335.0,98334.0,0.2033171]
[1738953314576,0.0412,98344.0,98332.0,0.00015255]
[1738953314773,0.2033095,98339.0,98338.0,0.2033091]
[1738953315171,0.0408,98343.0,98341.0,0.2033013]
[1738953315380,0.2033008,98342.0,98341.0,0.2033013]
[1738953315877,0.0408,98343.0,98341.0,0.5641013]
[1738953316062,0.2429741,98355.0,98342.0,0.2033]
[1738953316263,0.2032769,98354.0,98352.0,0.5640791]
[1738953316473,0.0397,98355.0,98341.0,0.3608]
[1738953316675,0.001,98342.0,98341.0,0.3608]
[1738953316974,0.2033191,98334.0,98332.0,0.01055135]
[1738953317177,0.2466194,98333.0,98332.0,0.01055135]
[1738953318774,0.2466194,98333.0,98332.0,0.00015255]
[1738953319173,0.0433,98333.0,98324.0,0.0015255]
[1738953319368,0.203336,98325.0,98324.0,0.0015255]
[1738953319573,0.09413,98333.0,98324.0,0.0015255]
[1738953319574,0.0433,98333.0,98324.0,0.0015255]
[1738953319763,0.0433,98333.0,98326.0,0.3608]
[1738953319968,0.0433,98333.0,98332.0,0.2033215]
[1738953321182,0.0435,98341.0,98340.0,0.2033049]
[1738953321366,0.0435,98341.0,98340.0,0.5641049]
[1738953321570,0.04205228,98342.0,98340.0,0.5641049]
[1738953322569,0.001,98341.0,98340.0,0.5641049]
[1738953323075,0.04305228,98342.0,98340.0,0.5641049]
[1738953323277,0.04305228,98342.0,98340.0,0.3608]
[1738953323579,0.2033029,98341.0,98340.0,0.3608]
[1738953324879,0.2043029,98341.0,98340.0,0.3608]
[1738953329076,0.001,98341.0,98327.0,0.3608]
[1738953329277,0.17870815,98340.0,98323.0,0.00015255]
[1738953329487,0.203338,98324.0,98323.0,0.00015255]
[1738953330377,0.203338,98324.0,98319.0,0.6040423]
[1738953330378,0.2033463,98320.0,98319.0,0.2432423]
[1738953330583,0.2033463,98320.0,98310.0,0.30296368]
[1738953330584,0.2033649,98311.0,98310.0,0.30296368]
[1738953332184,0.2769649,98311.0,98310.0,0.30296368]
[1738953333175,0.7344,98311.0,98301.0,0.00015255]
[1738953333376,0.7344,98311.0,98280.0,0.3608]
[1738953333377,0.0508477,98299.0,98272.0,0.30296368]
[1738953333578,0.0508477,98299.0,98274.0,0.2034399]
[1738953333778,0.2034299,98280.0,98277.0,0.2034351]
[1738953333981,0.2034361,98277.0,98272.0,0.30296368]
[1738953334185,0.2034415,98274.0,98272.0,0.30296368]
[1738953335576,0.1276,98273.0,98272.0,0.31196368]
[1738953336379,0.1276,98273.0,98263.0,0.00015263]
[1738953336585,0.2034622,98264.0,98263.0,0.00015263]
[1738953338690,0.001,98273.0,98271.0,0.2034477]
[1738953338979,0.07375263,98283.0,98264.0,0.0828]
[1738953339196,0.2034326,98279.0,98263.0,0.01945925]
[1738953339486,0.2034622,98264.0,98263.0,0.00315263]
[1738953340084,0.2034622,98264.0,98263.0,0.00015263]
[1738953341591,0.2034622,98264.0,98263.0,0.00215263]
[1738953345894,0.3608,98276.0,98263.0,0.00215263]
[1738953346085,0.0736,98275.0,98263.0,0.00215263]
[1738953346394,0.2034601,98265.0,98264.0,0.0863]
[1738953346580,0.0736,98275.0,98263.0,0.00215263]
[1738953346581,0.2034622,98264.0,98263.0,0.00215263]
[1738953346987,0.0736,98275.0,98263.0,0.00215263]
[1738953347494,0.2034622,98264.0,98263.0,0.00215263]
[1738953347880,0.2034622,98264.0,98263.0,0.00015263]
[1738953348583,0.2034622,98264.0,98263.0,0.00215263]
[1738953348980,0.2034622,98264.0,98242.0,0.20503317]
[1738953348981,0.2035016,98245.0,98242.0,0.00152677]
[1738953349493,0.2035057,98243.0,98242.0,0.00152677]
[1738953351381,0.2035057,98243.0,98242.0,0.36232677]
[1738953351586,0.2035057,98243.0,98242.0,0.36632677]
[1738953351788,0.2035057,98243.0,98242.0,0.3648]
[1738953352084,0.00015263,98252.0,98243.0,0.2035043]
[1738953352388,0.2034982,98247.0,98243.0,0.2035043]
[1738953352594,0.00015263,98252.0,98242.0,0.37608818]
[1738953352792,0.2035052,98244.0,98242.0,0.37508818]
[1738953353898,0.2035052,98244.0,98242.0,0.37108818]
[1738953354392,0.0736,98251.0,98242.0,0.37108818]
[1738953354393,0.203491,98251.0,98242.0,0.37108818]
[1738953354698,0.00015263,98252.0,98250.0,0.2034907]
[1738953354904,0.07379263,98252.0,98250.0,0.2034907]
[1738953355288,0.07379263,98252.0,98243.0,0.2928044]
[1738953355500,0.2034938,98249.0,98243.0,0.2928044]
[1738953355891,0.2034987,98247.0,98243.0,0.0893]
[1738953356097,0.2034987,98247.0,98244.0,0.2035032]
[1738953356496,0.2034987,98247.0,98245.0,0.2035011]
[1738953356692,0.00015263,98252.0,98243.0,0.0893]
[1738953357004,0.07364,98267.0,98266.0,0.2034581]
[1738953358600,0.07464,98267.0,98266.0,0.2034581]
[1738953359297,0.07664,98267.0,98266.0,0.2034581]
[1738953360893,0.003,98267.0,98266.0,0.2034581]
[1738953361301,0.001,98267.0,98266.0,0.0865]
[1738953361501,0.001,98267.0,98266.0,0.2899581]
[1738953361999,0.001527,98274.0,98273.0,0.2034436]
[1738953362204,0.001527,98274.0,98273.0,0.5642436]
[1738953362708,0.0736,98282.0,98273.0,0.5642436]
[1738953362709,0.36052909,98310.0,98285.0,0.0508543]
[1738953363001,0.36052909,98310.0,98299.0,0.2033887]
[1738953363199,0.2033832,98303.0,98296.0,0.2033951]
[1738953363504,0.2033718,98308.0,98294.0,0.3608]
[1738953363704,0.00015263,98309.0,98307.0,0.3608]
[1738953363999,0.2033767,98306.0,98304.0,0.3608]
[1738953364201,0.00015263,98309.0,98295.0,0.2469964]
[1738953364406,0.00015263,98309.0,98303.0,0.3608]
[1738953366004,0.2033794,98304.0,98303.0,0.3618]
[1738953366896,0.2033794,98304.0,98303.0,0.001]
[1738953367703,0.2033794,98304.0,98283.0,0.4041]
[1738953367911,0.009,98304.0,98303.0,0.001]
[1738953369205,0.00015263,98309.0,98307.0,0.2033723]
[1738953369403,0.00015263,98309.0,98308.0,0.3608]
[1738953371194,0.20352173,98309.0,98308.0,0.3608]
[1738953371410,0.00015263,98309.0,98308.0,0.3608]
[1738953372108,0.00915263,98309.0,98308.0,0.3618]
[1738953373007,0.00015263,98309.0,98308.0,0.3608]
[1738953373308,0.00515263,98309.0,98308.0,0.4503]
[1738953373806,0.00515263,98309.0,98308.0,0.6536712]
[1738953375594,0.00515263,98309.0,98308.0,0.66409546]
[1738953376601,0.00519732,98309.0,98308.0,0.66409546]
[1738953377108,0.3643681,98339.0,98330.0,0.2033252]
[1738953377306,0.3643681,98339.0,98329.0,0.3608]
[1738953377307,0.2033092,98338.0,98329.0,0.3608]
[1738953378306,0.16106,98339.0,98329.0,0.3608]
[1738953378612,0.21384801,98332.0,98330.0,0.001]
[1738953379112,0.2033257,98330.0,98329.0,0.3618]
[1738953379705,0.2033257,98330.0,98329.0,0.3608]
[1738953380001,0.2033422,98322.0,98321.0,0.00015255]
[1738953380203,0.2769022,98322.0,98321.0,0.00015255]
[1738953380505,0.07356,98322.0,98308.0,0.37122426]
[1738953380707,0.2033684,98310.0,98308.0,0.37122426]
[1738953381014,0.3608,98313.0,98301.0,0.00152586]
[1738953381221,0.2890693,98309.0,98301.0,0.00152586]
[1738953381600,0.0857,98309.0,98301.0,0.00152586]
[1738953381800,0.2033836,98302.0,98301.0,0.00152586]
[1738953382905,0.004,98309.0,98308.0,0.2033712]
[1738953383104,0.004,98309.0,98301.0,0.36232586]
[1738953383105,0.2033242,98331.0,98314.0,0.2033587]
[1738953383304,0.2033282,98329.0,98314.0,0.5641587]
[1738953383506,0.2033253,98331.0,98314.0,0.5641587]
[1738953383702,0.0871,98336.0,98314.0,0.5641587]
[1738953383903,0.2032867,98349.0,98331.0,0.2033236]
[1738953384114,0.11446,98351.0,98331.0,0.7216]
[1738953384316,0.0409,98351.0,98339.0,0.3608]
[1738953384506,0.2768352,98355.0,98348.0,0.3608]
[1738953384817,0.07356,98355.0,98348.0,0.3608]
[1738953385119,0.2768345,98355.0,98348.0,0.3608]
[1738953385416,0.009,98351.0,98348.0,0.3608]
[1738953385810,0.2032805,98352.0,98348.0,0.3618]
[1738953388015,0.2112805,98352.0,98348.0,0.3618]
[1738953389015,0.008,98352.0,98348.0,0.3618]
[1738953391507,0.008,98352.0,98348.0,0.001]
[1738953391714,0.2032864,98349.0,98348.0,0.001]
[1738953392018,0.2032988,98343.0,98342.0,0.00015255]
[1738953393411,0.3608,98345.0,98342.0,0.00015255]
[1738953393611,0.07352,98351.0,98342.0,0.00015255]
[1738953393920,0.3608,98346.0,98342.0,0.00015255]
[1738953394217,0.005,98343.0,98342.0,0.00015255]
[1738953394612,0.2032988,98343.0,98342.0,0.00015255]
[1738953394814,0.2032988,98343.0,98342.0,0.00115255]
[1738953395315,0.005,98343.0,98342.0,0.00015255]
[1738953395815,0.005,98343.0,98342.0,0.20345335]
[1738953400122,0.005,98343.0,98342.0,0.21376725]
[1738953404236,0.2082988,98343.0,98342.0,0.01046645]
[1738953406337,0.2082988,98343.0,98342.0,0.00015255]
[1738953406537,0.2033318,98327.0,98323.0,0.0103596]
[1738953406743,0.9984518,98327.0,98326.0,4e-08]
[1738953407743,0.6376518,98327.0,98326.0,4e-08]
[1738953407945,0.6466518,98327.0,98326.0,0.00100004]
[1738953408441,0.2858518,98327.0,98326.0,0.00100004]
[1738953408940,0.2858518,98327.0,98326.0,0.001]
[1738953409334,0.2768518,98327.0,98318.0,0.2033505]
[1738953409539,0.2848518,98327.0,98326.0,0.001]
[1738953409939,0.07352,98327.0,98317.0,0.00015255]
[1738953410246,0.2033505,98318.0,98317.0,0.00015255]
[1738953412741,0.2053505,98318.0,98317.0,0.00015255]
[1738953413342,0.2093505,98318.0,98317.0,0.00115255]
[1738953413837,0.2033505,98318.0,98317.0,0.00015255]
[1738953414035,0.2093505,98318.0,98317.0,0.00115255]
[1738953415246,0.35516528,98318.0,98317.0,0.00115255]
[1738953415445,0.34916528,98318.0,98317.0,0.00015255]
[1738953415746,0.35516528,98318.0,98317.0,0.00115255]
[1738953416050,0.35516528,98318.0,98317.0,0.00015255]
[1738953416252,0.35316528,98318.0,98317.0,0.00015255]
[1738953416941,0.34916528,98318.0,98317.0,0.00015255]
[1738953417143,0.35316528,98318.0,98317.0,0.00015255]
[1738953417651,0.14981478,98318.0,98317.0,0.72175255]
[1738953417850,0.00152615,98338.0,98318.0,0.2541857]
[1738953418048,0.00152615,98338.0,98335.0,0.5641153]
[1738953419649,0.00152615,98338.0,98335.0,0.3608]
[1738953419850,0.00152615,98338.0,98318.0,0.0873]
[1738953419851,0.2033217,98332.0,98325.0,0.5641353]
[1738953420052,0.00115255,98336.0,98325.0,0.5641353]
[1738953420352,0.00115255,98336.0,98325.0,0.3608]
[1738953421054,0.00115255,98336.0,98318.0,0.0873]
[1738953421055,0.2033385,98324.0,98318.0,0.0873]
[1738953421247,0.2033385,98324.0,98323.0,0.3608]
[1738953424053,0.04523453,98332.0,98323.0,0.3608]
[1738953424250,0.04523453,98332.0,98326.0,0.2033325]
[1738953424454,0.00015255,98336.0,98331.0,0.3608]
[1738953424754,0.00015255,98336.0,98335.0,0.2033153]
[1738953425147,0.00015255,98336.0,98335.0,0.5641153]
[1738953426952,0.11858,98359.0,98337.0,0.2033112]
[1738953427257,0.2032867,98349.0,98337.0,0.2033112]
[1738953427760,0.2032889,98348.0,98337.0,0.2033112]
[1738953427957,0.00015212,98347.0,98335.0,0.3608]
[1738953428160,0.2033112,98337.0,98335.0,0.3608]
[1738953428459,0.2032991,98343.0,98336.0,0.2033132]
[1738953429150,0.07348,98344.0,98336.0,0.2033132]
[1738953429346,0.00252615,98338.0,98336.0,0.2033132]
[1738953429554,0.2033112,98337.0,98335.0,0.36172]
[1738953429758,0.2033112,98337.0,98335.0,0.3608]
[1738953430753,0.2043112,98337.0,98335.0,0.5641151]
[1738953430959,0.001,98337.0,98335.0,0.5641151]
[1738953431555,0.2043124,98337.0,98335.0,0.5641151]
[1738953432164,0.2043124,98337.0,98335.0,0.3608]
[1738953432365,0.3618,98337.0,98318.0,0.08822]
[1738953432662,0.3618,98337.0,98310.0,0.3608]
[1738953432663,0.2033484,98319.0,98310.0,0.3608]
[1738953432853,0.07348,98318.0,98310.0,0.3608]
[1738953433862,0.07348,98318.0,98317.0,0.00615255]
[1738953434757,0.07448,98318.0,98317.0,0.00615255]
[1738953434965,0.11888,98318.0,98317.0,0.00615255]
[1738953435358,0.0454,98318.0,98317.0,0.00615255]
[1738953435662,0.11888,98318.0,98317.0,0.00615255]
[1738953436667,0.47968,98318.0,98317.0,0.00615255]
[1738953438262,0.6830305,98318.0,98317.0,0.00615255]
[1738953438460,0.3222305,98318.0,98317.0,0.00615255]
[1738953438663,0.2043505,98318.0,98317.0,0.36695255]
[1738953439062,0.2043505,98318.0,98317.0,0.00615255]
[1738953440870,0.5651505,98318.0,98317.0,0.00615255]
[1738953441655,0.2043505,98318.0,98317.0,0.00615255]
[1738953441861,0.001,98318.0,98317.0,0.00615255]
[1738953442069,0.001,98318.0,98317.0,0.20950505]
[1738953442671,0.00015212,98327.0,98317.0,0.00015255]
[1738953442871,0.00015212,98327.0,98326.0,0.2033339]
[1738953443166,0.203299,98343.0,98324.0,0.72252]
[1738953443369,0.203305,98340.0,98337.0,0.5641112]
[1738953443765,0.07348,98346.0,98337.0,0.5641112]
[1738953443969,0.20483525,98338.0,98337.0,0.5641112]
[1738953444563,0.21083525,98338.0,98337.0,0.5651112]
[1738953445172,0.00752615,98338.0,98337.0,0.5651112]
[1738953446471,0.00152615,98338.0,98337.0,0.5641112]
[1738953446668,0.00252615,98338.0,98332.0,0.3608]
[1738953446869,0.2033194,98333.0,98332.0,0.3608]
[1738953448277,0.2033194,98333.0,98332.0,0.3618]
[1738953448873,0.2033114,98337.0,98333.0,0.2033194]
[1738953449174,0.2033194,98333.0,98332.0,0.3618]
[1738953449974,0.2063194,98333.0,98332.0,0.3618]
[1738953450967,0.2033194,98333.0,98332.0,0.3608]
[1738953453576,0.2053194,98333.0,98332.0,0.3608]
[1738953453873,0.2033194,98333.0,98332.0,0.3608]
[1738953454064,0.2033194,98333.0,98332.0,0.3618]
[1738953454267,0.2033094,98338.0,98335.0,0.2033143]
[1738953454876,0.07348,98342.0,98332.0,0.3618]
[1738953456169,0.203315,98336.0,98332.0,0.5651202]
[1738953456367,0.203315,98336.0,98332.0,0.5641202]
[1738953456577,0.2033159,98335.0,98332.0,0.5641202]
[1738953457880,0.2033159,98335.0,98333.0,0.2033191]
[1738953458481,0.07348,98342.0,98332.0,0.3608]
[1738953458781,0.2033194,98333.0,98332.0,0.3608]
[1738953459172,0.2033194,98333.0,98332.0,0.5641215]
[1738953459478,0.2033194,98333.0,98332.0,0.3608]
[1738953460478,0.2033194,98333.0,98332.0,0.3618]
[1738953462583,0.2033113,98337.0,98335.0,0.2033149]
[1738953463994,0.2043113,98337.0,98335.0,0.2033149]
[1738953465384,0.2033132,98336.0,98332.0,0.3608]
[1738953465586,0.2033132,98336.0,98332.0,0.5641212]
[1738953466589,0.2033159,98335.0,98332.0,0.5641212]
[1738953466785,0.2033192,98334.0,98332.0,0.5641212]
[1738953466989,0.07344,98341.0,98332.0,0.3608]
[1738953466990,0.2033194,98333.0,98332.0,0.3608]
[1738953467981,0.2033318,98327.0,98326.0,0.01040193]
[1738953468186,0.3608,98335.0,98317.0,0.36095255]
[1738953468481,0.2033504,98318.0,98317.0,0.00015255]
[1738953469889,0.2490504,98318.0,98317.0,0.00615255]
[1738953470391,0.3360504,98318.0,98317.0,0.00615255]
[1738953472586,0.1317,98318.0,98312.0,0.00152557]
[1738953472788,0.2034042,98292.0,98291.0,0.23906618]
[1738953474399,0.2033952,98297.0,98296.0,0.2033948]
[1738953475896,0.2034008,98294.0,98291.0,0.01615304]
[1738953476097,0.2034022,98293.0,98291.0,0.01615304]
[1738953476282,0.2034022,98293.0,98291.0,0.01015304]
[1738953476486,0.2034042,98292.0,98286.0,0.0862]
[1738953476692,0.2034125,98288.0,98286.0,0.0862]
[1738953476996,0.2034125,98288.0,98286.0,0.2896164]
[1738953477195,0.2034125,98288.0,98286.0,0.0862]
[1738953477991,0.2034125,98288.0,98287.0,0.37122749]
[1738953478494,0.2034125,98288.0,98287.0,0.57464209]
[1738953479185,0.2034125,98288.0,98287.0,0.37122749]
[1738953479600,0.2034125,98288.0,98287.0,0.3608]
[1738953480098,0.2044125,98288.0,98287.0,0.3678]
[1738953480691,0.2044125,98288.0,98287.0,0.3668]
[1738953480892,0.2044125,98288.0,98287.0,0.006]
[1738953481290,0.2044125,98288.0,98282.0,0.00015255]
[1738953481291,0.07444,98288.0,98282.0,0.00015255]
[1738953481590,0.2034228,98283.0,98282.0,0.00015255]
[1738953483295,0.2034228,98283.0,98282.0,0.00415255]
[1738953486397,0.00015255,98301.0,98282.0,0.00415255]
[1738953486589,0.00015255,98301.0,98298.0,0.2033918]
[1738953486790,0.00015255,98301.0,98299.0,0.2033891]
[1738953486996,0.00015255,98301.0,98295.0,0.0441]
[1738953487201,0.20353835,98301.0,98295.0,0.0441]
[1738953487504,0.20353835,98301.0,98285.0,0.3608]
[1738953487505,0.0508487,98297.0,98283.0,0.0886]
[1738953487694,0.2034208,98284.0,98283.0,0.0431]
[1738953487896,0.2034208,98284.0,98283.0,0.4039]
[1738953488295,0.11916484,98293.0,98283.0,0.6073211]
[1738953488599,0.2034208,98284.0,98283.0,0.4039]
[1738953490003,0.2034122,98289.0,98283.0,0.4039]
[1738953490309,0.203409,98290.0,98286.0,0.2034162]
[1738953491210,0.203409,98290.0,98283.0,0.40482]
[1738953491408,0.203409,98290.0,98287.0,0.2034128]
[1738953492205,0.11916484,98300.0,98283.0,0.40486]
[1738953492413,0.2033978,98296.0,98295.0,0.203398]
[1738953492608,0.00015255,98301.0,98292.0,0.3608]
[1738953492911,0.00015255,98301.0,98300.0,0.5641877]
[1738953494113,0.00152631,98316.0,98315.0,0.2033566]
[1738953494406,0.00152631,98316.0,98315.0,0.5641566]
[1738953494597,0.00152631,98316.0,98315.0,0.3608]
[1738953495406,0.00152631,98316.0,98306.0,0.00015255]
[1738953495605,0.2033706,98309.0,98306.0,0.00015255]
[1738953495799,0.2033728,98308.0,98306.0,0.00015255]
[1738953497807,0.2063728,98308.0,98306.0,0.00015255]
[1738953499611,0.2033732,98307.0,98306.0,0.01010817]
[1738953500413,0.2033732,98307.0,98306.0,0.00015255]
[1738953500714,0.2063732,98307.0,98306.0,0.00015255]
[1738953503810,0.2033732,98307.0,98306.0,0.00015255]
[1738953504110,0.2053732,98307.0,98306.0,0.00015255]
[1738953505913,0.2053732,98307.0,98306.0,0.20352785]
[1738953506209,0.002,98307.0,98306.0,0.20352785]
[1738953507212,0.001,98307.0,98306.0,0.36095255]
[1738953507412,0.001,98307.0,98306.0,0.56432785]
[1738953507813,0.2043732,98307.0,98306.0,0.56432785]
[1738953508119,0.2043732,98307.0,98306.0,0.36095255]
[1738953509810,0.2043732,98307.0,98306.0,0.56432775]
[1738953510111,0.001,98307.0,98306.0,0.56432775]
[1738953517133,0.001,98307.0,98306.0,0.57435163]
[1738953520221,0.2043732,98307.0,98306.0,0.57435163]
[1738953520421,0.001,98307.0,98306.0,0.57435163]
[1738953522623,0.2043732,98307.0,98306.0,0.57435163]
[1738953523431,0.2043732,98307.0,98306.0,0.37097643]
[1738953525631,0.2043732,98307.0,98306.0,0.57435163]
[1738953527321,0.001,98307.0,98306.0,0.57435163]
[1738953528634,0.2043732,98307.0,98306.0,0.57435163]
[1738953528825,0.2043732,98307.0,98306.0,0.37097643]
[1738953530627,0.2043732,98307.0,98306.0,0.36095255]
[1738953531729,0.2043732,98307.0,98306.0,0.00015255]
[1738953539632,0.2777732,98307.0,98306.0,0.00015255]
[1738953539832,0.2043732,98307.0,98306.0,0.00015255]
[1738953550442,0.2043732,98307.0,98306.0,5e-08]
[1738953550643,0.2034104,98289.0,98280.0,0.00152604]
[1738953550948,0.2034228,98283.0,98280.0,0.00152604]
[1738953552243,0.07496001,98289.0,98282.0,0.59986618]
[1738953552439,0.2034151,98287.0,98282.0,0.80329038]
[1738953552640,0.001,98283.0,98282.0,0.80429038]
[1738953553346,0.2034132,98288.0,98283.0,0.2034228]
[1738953553549,0.2034145,98287.0,98283.0,0.2034228]